[Event "Titled Tuesday Blitz May 30 Early 2023"]
[White "Larina, Maria"]
[Black "Vovk, Orest"]
[WhiteFideId "24113182"]
[BlackFideId "14113490"]
[WhiteElo "1848"]
[BlackElo "2215"]
[Result "0-1"]
[Round "04"]
[TimeControl "180+2"]
[Date "2023.05.30"]
[WhiteClock "0:00:07"]
[BlackClock "0:00:08"]

1. e4 {[%clk 0:03:00]}  g5 {[%clk 0:02:58]} 2. d4 {[%clk 0:02:59]}  g4 {[%clk 0:02:48]} 3. h3 {[%clk 0:02:55]}  g3 {[%clk 0:02:36]} 4. fxg3 {[%clk 0:02:52]}  Bg7 {[%clk 0:02:21]} 5. Nc3 {[%clk 0:02:48]}  c5 {[%clk 0:02:21]} 6. Nf3 {[%clk 0:02:42]}  cxd4 {[%clk 0:02:18]} 7. Nxd4 {[%clk 0:02:42]}  Nc6 {[%clk 0:02:18]} 8. Nxc6 {[%clk 0:02:40]}  bxc6 {[%clk 0:02:15]} 9. Be3 {[%clk 0:02:33]}  Rb8 {[%clk 0:02:12]} 10. Bd4 {[%clk 0:02:23]}  Bxd4 {[%clk 0:02:04]} 11. Qxd4 {[%clk 0:02:22]}  Nf6 {[%clk 0:02:04]} 12. e5 {[%clk 0:02:00]}  Nd5 {[%clk 0:02:03]} 13. Nxd5 {[%clk 0:01:58]}  cxd5 {[%clk 0:02:04]} 14. e6 {[%clk 0:01:50]}  O-O {[%clk 0:01:50]} 15. exd7 {[%clk 0:01:36]}  Qa5+ {[%clk 0:01:40]} 16. Qd2 {[%clk 0:01:25]}  Qxd2+ {[%clk 0:01:39]} 17. Kxd2 {[%clk 0:01:26]}  Bxd7 {[%clk 0:01:39]} 18. b3 {[%clk 0:01:15]}  e5 {[%clk 0:01:39]} 19. c3 {[%clk 0:01:07]}  f5 {[%clk 0:01:37]} 20. Be2 {[%clk 0:01:05]}  Kf7 {[%clk 0:01:30]} 21. Rhf1 {[%clk 0:01:05]}  Ke6 {[%clk 0:01:30]} 22. Rae1 {[%clk 0:00:50]}  Kd6 {[%clk 0:01:29]} 23. Kc2 {[%clk 0:00:49]}  Rg8 {[%clk 0:01:23]} 24. g4 {[%clk 0:00:38]}  f4 {[%clk 0:01:16]} 25. g3 {[%clk 0:00:30]}  fxg3 {[%clk 0:01:15]} 26. Rg1 {[%clk 0:00:21]}  Rbf8 {[%clk 0:01:04]} 27. Rxg3 {[%clk 0:00:21]}  Rf2 {[%clk 0:01:04]} 28. Kd1 {[%clk 0:00:20]}  e4 {[%clk 0:01:00]} 29. Rf1 {[%clk 0:00:18]}  Rgf8 {[%clk 0:00:56]} 30. Rgg1 {[%clk 0:00:19]}  Ke5 {[%clk 0:00:46]} 31. Ke1 {[%clk 0:00:18]}  e3 {[%clk 0:00:33]} 32. Bd3 {[%clk 0:00:14]}  h6 {[%clk 0:00:29]} 33. a4 {[%clk 0:00:14]}  d4 {[%clk 0:00:26]} 34. cxd4+ {[%clk 0:00:13]}  Kxd4 {[%clk 0:00:26]} 35. Bc4 {[%clk 0:00:13]}  Bxa4 {[%clk 0:00:19]} 36. bxa4 {[%clk 0:00:13]}  Kxc4 {[%clk 0:00:18]} 37. h4 {[%clk 0:00:10]}  Kd3 {[%clk 0:00:14]} 38. g5 {[%clk 0:00:09]}  Re2+ {[%clk 0:00:12]} 39. Kd1 {[%clk 0:00:09]}  Rb8 {[%clk 0:00:09]} 40. Kc1 {[%clk 0:00:08]}  Rc2+ {[%clk 0:00:08]} 41. Kd1 {[%clk 0:00:07]}  Rb1# {[%clk 0:00:08]} 0-1


[Site "https://www.chess.com"]

[Event "Titled Tuesday Blitz May 30 Early 2023"]
[White "Fishchuk, Vladyslav"]
[Black "Dilmukhametov, Artur"]
[WhiteFideId "34122117"]
[BlackFideId "24179922"]
[WhiteElo "2082"]
[BlackElo "2242"]
[Result "0-1"]
[Round "04"]
[TimeControl "180+2"]
[Date "2023.05.30"]
[WhiteClock "0:00:12"]
[BlackClock "0:00:42"]

1. e4 {[%clk 0:03:00]}  e5 {[%clk 0:03:00]} 2. Nf3 {[%clk 0:03:00]}  Nf6 {[%clk 0:03:00]} 3. Nc3 {[%clk 0:03:00]}  Nc6 {[%clk 0:03:01]} 4. Bb5 {[%clk 0:03:01]}  Bb4 {[%clk 0:03:00]} 5. O-O {[%clk 0:03:00]}  O-O {[%clk 0:02:59]} 6. Bxc6 {[%clk 0:02:59]}  dxc6 {[%clk 0:02:58]} 7. d3 {[%clk 0:02:58]}  Bg4 {[%clk 0:02:56]} 8. h3 {[%clk 0:02:56]}  Bxf3 {[%clk 0:02:56]} 9. Qxf3 {[%clk 0:02:57]}  h6 {[%clk 0:02:54]} 10. Ne2 {[%clk 0:02:53]}  Re8 {[%clk 0:02:53]} 11. g4 {[%clk 0:02:36]}  Qd7 {[%clk 0:02:46]} 12. Ng3 {[%clk 0:02:35]}  Rad8 {[%clk 0:02:39]} 13. Nf5 {[%clk 0:02:27]}  Nh7 {[%clk 0:02:31]} 14. Be3 {[%clk 0:02:22]}  Bf8 {[%clk 0:02:28]} 15. Kh1 {[%clk 0:02:08]}  Ng5 {[%clk 0:02:26]} 16. Qg2 {[%clk 0:01:58]}  g6 {[%clk 0:02:22]} 17. h4 {[%clk 0:01:27]}  gxf5 {[%clk 0:02:19]} 18. gxf5 {[%clk 0:01:28]}  f6 {[%clk 0:02:15]} 19. hxg5 {[%clk 0:01:28]}  hxg5 {[%clk 0:02:10]} 20. Qg4 {[%clk 0:01:29]}  Re7 {[%clk 0:02:04]} 21. Kg2 {[%clk 0:01:28]}  Rh7 {[%clk 0:02:04]} 22. Rh1 {[%clk 0:01:28]}  Rxh1 {[%clk 0:01:49]} 23. Rxh1 {[%clk 0:01:28]}  Qg7 {[%clk 0:01:48]} 24. b3 {[%clk 0:01:21]}  c5 {[%clk 0:01:47]} 25. a4 {[%clk 0:01:18]}  c6 {[%clk 0:01:46]} 26. Kf3 {[%clk 0:00:59]}  b5 {[%clk 0:01:40]} 27. Ra1 {[%clk 0:00:50]}  Rc8 {[%clk 0:01:15]} 28. Kg2 {[%clk 0:00:44]}  Rc7 {[%clk 0:01:05]} 29. axb5 {[%clk 0:00:36]}  cxb5 {[%clk 0:01:05]} 30. Ra6 {[%clk 0:00:37]}  Qh8 {[%clk 0:00:59]} 31. c4 {[%clk 0:00:23]}  bxc4 {[%clk 0:00:56]} 32. dxc4 {[%clk 0:00:24]}  Qh6 {[%clk 0:00:45]} 33. Qd1 {[%clk 0:00:23]}  Rh7 {[%clk 0:00:43]} 34. Qd5+ {[%clk 0:00:21]}  Kh8 {[%clk 0:00:43]} 35. Kf3 {[%clk 0:00:16]}  Qh5+ {[%clk 0:00:42]} 36. Kg3 {[%clk 0:00:12]}  Qh3# {[%clk 0:00:42]} 0-1


[Site "https://www.chess.com"]

[Event "Titled Tuesday Blitz May 30 Early 2023"]
[White "Yeritsyan, Hayk"]
[Black "Antonova, Nadezhda"]
[WhiteFideId "13307320"]
[BlackFideId "14700182"]
[WhiteElo "2444"]
[BlackElo "1799"]
[Result "0-1"]
[Round "04"]
[TimeControl "180+2"]
[Date "2023.05.30"]
[WhiteClock "0:01:27"]
[BlackClock "0:00:19"]

1. d4 {[%clk 0:02:55]}  Nf6 {[%clk 0:02:59]} 2. Nf3 {[%clk 0:02:56]}  g6 {[%clk 0:02:59]} 3. Bf4 {[%clk 0:02:56]}  Bg7 {[%clk 0:03:00]} 4. h3 {[%clk 0:02:56]}  O-O {[%clk 0:02:59]} 5. e3 {[%clk 0:02:57]}  d6 {[%clk 0:02:59]} 6. c3 {[%clk 0:02:58]}  b6 {[%clk 0:02:59]} 7. Be2 {[%clk 0:02:59]}  Bb7 {[%clk 0:03:00]} 8. O-O {[%clk 0:02:59]}  Nbd7 {[%clk 0:03:01]} 9. Bh2 {[%clk 0:03:00]}  c5 {[%clk 0:03:00]} 10. Nbd2 {[%clk 0:03:01]}  a6 {[%clk 0:03:00]} 11. b4 {[%clk 0:03:00]}  Qc7 {[%clk 0:02:45]} 12. bxc5 {[%clk 0:02:59]}  bxc5 {[%clk 0:02:44]} 13. Rc1 {[%clk 0:03:00]}  Ne4 {[%clk 0:02:39]} 14. Nxe4 {[%clk 0:02:59]}  Bxe4 {[%clk 0:02:40]} 15. Qa4 {[%clk 0:02:56]}  Bc6 {[%clk 0:02:39]} 16. Qa3 {[%clk 0:02:55]}  Bb5 {[%clk 0:02:27]} 17. Rfe1 {[%clk 0:02:50]}  Bxe2 {[%clk 0:02:20]} 18. Rxe2 {[%clk 0:02:50]}  Rfb8 {[%clk 0:02:20]} 19. Rec2 {[%clk 0:02:47]}  Rb6 {[%clk 0:02:12]} 20. Nd2 {[%clk 0:02:46]}  Rb5 {[%clk 0:02:03]} 21. Bg3 {[%clk 0:02:44]}  Ra5 {[%clk 0:01:59]} 22. Qb2 {[%clk 0:02:42]}  Rb8 {[%clk 0:01:58]} 23. Qa1 {[%clk 0:02:37]}  Rab5 {[%clk 0:01:55]} 24. Rd1 {[%clk 0:02:32]}  Qb6 {[%clk 0:01:53]} 25. Rcc1 {[%clk 0:02:29]}  Qb7 {[%clk 0:01:45]} 26. Rb1 {[%clk 0:02:28]}  cxd4 {[%clk 0:01:35]} 27. cxd4 {[%clk 0:02:27]}  Qd5 {[%clk 0:01:20]} 28. a4 {[%clk 0:02:21]}  R5b7 {[%clk 0:01:08]} 29. Rxb7 {[%clk 0:02:17]}  Rxb7 {[%clk 0:01:07]} 30. Rb1 {[%clk 0:02:17]}  Rxb1+ {[%clk 0:00:48]} 31. Qxb1 {[%clk 0:02:16]}  Qa5 {[%clk 0:00:47]} 32. Qb7 {[%clk 0:02:06]}  Nb6 {[%clk 0:00:38]} 33. Qc7 {[%clk 0:01:45]}  Qxd2 {[%clk 0:00:33]} 34. Qxb6 {[%clk 0:01:45]}  Qd1+ {[%clk 0:00:30]} 35. Kh2 {[%clk 0:01:44]}  Qxa4 {[%clk 0:00:31]} 36. Bf4 {[%clk 0:01:36]}  f6 {[%clk 0:00:21]} 37. Qd8+ {[%clk 0:01:29]}  Kf7 {[%clk 0:00:21]} 38. Qd7 {[%clk 0:01:27]}  Qxd7 {[%clk 0:00:19]} 0-1


[Site "https://www.chess.com"]

[Event "Titled Tuesday Blitz May 30 Early 2023"]
[White "Andrew_Ledger"]
[Black "Ryan, Joseph"]
[BlackFideId "2500426"]
[WhiteElo "2165"]
[BlackElo "2443"]
[Result "1/2-1/2"]
[Round "04"]
[TimeControl "180+2"]
[Date "2023.05.30"]
[WhiteClock "0:00:04"]
[BlackClock "0:00:19"]

1. Nf3 {[%clk 0:03:00]}  Nf6 {[%clk 0:02:58]} 2. c4 {[%clk 0:02:59]}  g6 {[%clk 0:02:52]} 3. g3 {[%clk 0:02:59]}  Bg7 {[%clk 0:02:47]} 4. Bg2 {[%clk 0:02:59]}  O-O {[%clk 0:02:46]} 5. O-O {[%clk 0:02:59]}  d6 {[%clk 0:02:44]} 6. Nc3 {[%clk 0:02:59]}  c6 {[%clk 0:02:42]} 7. d3 {[%clk 0:02:57]}  e5 {[%clk 0:02:34]} 8. Rb1 {[%clk 0:02:52]}  a5 {[%clk 0:02:34]} 9. b3 {[%clk 0:02:50]}  Re8 {[%clk 0:02:28]} 10. Bb2 {[%clk 0:02:50]}  d5 {[%clk 0:02:26]} 11. cxd5 {[%clk 0:02:40]}  cxd5 {[%clk 0:02:27]} 12. e3 {[%clk 0:02:19]}  Nc6 {[%clk 0:02:26]} 13. Rc1 {[%clk 0:02:18]}  Bg4 {[%clk 0:02:05]} 14. h3 {[%clk 0:02:16]}  Be6 {[%clk 0:02:05]} 15. Kh2 {[%clk 0:02:15]}  h6 {[%clk 0:02:05]} 16. Na4 {[%clk 0:02:11]}  Nd7 {[%clk 0:02:03]} 17. Nc5 {[%clk 0:01:59]}  Nxc5 {[%clk 0:02:02]} 18. Rxc5 {[%clk 0:02:00]}  Qd7 {[%clk 0:01:59]} 19. Qd2 {[%clk 0:01:51]}  a4 {[%clk 0:01:55]} 20. b4 {[%clk 0:01:39]}  a3 {[%clk 0:01:55]} 21. Ba1 {[%clk 0:01:32]}  b6 {[%clk 0:01:46]} 22. Rc2 {[%clk 0:01:23]}  Rec8 {[%clk 0:01:38]} 23. Rfc1 {[%clk 0:01:15]}  f6 {[%clk 0:01:37]} 24. Bc3 {[%clk 0:00:57]}  b5 {[%clk 0:01:31]} 25. Qe2 {[%clk 0:00:51]}  Bf8 {[%clk 0:01:26]} 26. Qe1 {[%clk 0:00:38]}  Rc7 {[%clk 0:01:23]} 27. Bf1 {[%clk 0:00:21]}  Rac8 {[%clk 0:01:23]} 28. Qd1 {[%clk 0:00:19]}  Nxb4 {[%clk 0:01:15]} 29. Bxb4 {[%clk 0:00:19]}  Bxb4 {[%clk 0:01:15]} 30. Rxc7 {[%clk 0:00:19]}  Rxc7 {[%clk 0:01:16]} 31. Rxc7 {[%clk 0:00:20]}  Qxc7 {[%clk 0:01:15]} 32. d4 {[%clk 0:00:19]}  e4 {[%clk 0:01:12]} 33. Nh4 {[%clk 0:00:19]}  g5 {[%clk 0:01:04]} 34. Ng2 {[%clk 0:00:17]}  Qc3 {[%clk 0:00:56]} 35. Bxb5 {[%clk 0:00:16]}  Qb2 {[%clk 0:00:40]} 36. Qh5 {[%clk 0:00:16]}  Bf7 {[%clk 0:00:29]} 37. Qxh6 {[%clk 0:00:16]}  Bf8 {[%clk 0:00:29]} 38. Qxf6 {[%clk 0:00:16]}  Qxb5 {[%clk 0:00:29]} 39. Qxg5+ {[%clk 0:00:16]}  Bg7 {[%clk 0:00:28]} 40. Nf4 {[%clk 0:00:15]}  Qf1 {[%clk 0:00:26]} 41. Qd8+ {[%clk 0:00:06]}  Kh7 {[%clk 0:00:25]} 42. Qh4+ {[%clk 0:00:05]}  Kg8 {[%clk 0:00:24]} 43. Qd8+ {[%clk 0:00:05]}  Kh7 {[%clk 0:00:19]} 44. Qh4+ {[%clk 0:00:04]}  Kg8 {[%clk 0:00:19]} 45. Qd8+ {[%clk 0:00:04]} 1/2-1/2


[Site "https://www.chess.com"]

[Event "Titled Tuesday Blitz May 30 Early 2023"]
[White "Trifan, Andrei Ioan"]
[Black "Flis, Pawel"]
[WhiteFideId "12967068"]
[BlackFideId "1112864"]
[WhiteElo "2208"]
[BlackElo "1822"]
[Result "1-0"]
[Round "04"]
[TimeControl "180+2"]
[Date "2023.05.30"]
[WhiteClock "0:01:10"]
[BlackClock "0:00:00"]

1. e4 {[%clk 0:03:00]}  c5 {[%clk 0:02:58]} 2. Nf3 {[%clk 0:02:57]}  d6 {[%clk 0:02:58]} 3. c4 {[%clk 0:02:56]}  Nf6 {[%clk 0:02:57]} 4. Nc3 {[%clk 0:02:57]}  Nc6 {[%clk 0:02:53]} 5. Be2 {[%clk 0:02:56]}  g6 {[%clk 0:02:53]} 6. O-O {[%clk 0:02:56]}  Bg7 {[%clk 0:02:53]} 7. d4 {[%clk 0:02:53]}  cxd4 {[%clk 0:02:54]} 8. Nxd4 {[%clk 0:02:54]}  O-O {[%clk 0:02:53]} 9. Be3 {[%clk 0:02:54]}  Bd7 {[%clk 0:02:53]} 10. Rc1 {[%clk 0:02:54]}  Nxd4 {[%clk 0:02:53]} 11. Bxd4 {[%clk 0:02:55]}  Bc6 {[%clk 0:02:53]} 12. f3 {[%clk 0:02:55]}  Nd7 {[%clk 0:02:52]} 13. Bxg7 {[%clk 0:02:53]}  Kxg7 {[%clk 0:02:52]} 14. Qd4+ {[%clk 0:02:54]}  Kg8 {[%clk 0:02:52]} 15. Rfd1 {[%clk 0:02:54]}  a5 {[%clk 0:02:49]} 16. Nd5 {[%clk 0:02:51]}  Bxd5 {[%clk 0:02:46]} 17. cxd5 {[%clk 0:02:52]}  Rc8 {[%clk 0:02:34]} 18. Bb5 {[%clk 0:02:49]}  Nc5 {[%clk 0:01:50]} 19. a3 {[%clk 0:02:30]}  Nb3 {[%clk 0:01:40]} 20. Rxc8 {[%clk 0:02:31]}  Qxc8 {[%clk 0:01:25]} 21. Qc4 {[%clk 0:02:17]}  Qc5+ {[%clk 0:01:02]} 22. Qxc5 {[%clk 0:02:15]}  Nxc5 {[%clk 0:00:57]} 23. b4 {[%clk 0:02:13]}  axb4 {[%clk 0:00:54]} 24. axb4 {[%clk 0:02:14]}  Na6 {[%clk 0:00:48]} 25. Rc1 {[%clk 0:01:41]}  Nxb4 {[%clk 0:00:43]} 26. Rc7 {[%clk 0:01:40]}  Ra8 {[%clk 0:00:35]} 27. Rxe7 {[%clk 0:01:38]}  Ra1+ {[%clk 0:00:18]} 28. Kf2 {[%clk 0:01:38]}  Ra2+ {[%clk 0:00:18]} 29. Kg3 {[%clk 0:01:37]}  Nc2 {[%clk 0:00:16]} 30. Rxb7 {[%clk 0:01:28]}  Ne3 {[%clk 0:00:16]} 31. Kf4 {[%clk 0:01:27]}  Nxg2+ {[%clk 0:00:15]} 32. Kg5 {[%clk 0:01:27]}  Kg7 {[%clk 0:00:15]} 33. Be8 {[%clk 0:01:26]}  h6+ {[%clk 0:00:13]} 34. Kg4 {[%clk 0:01:23]}  h5+ {[%clk 0:00:10]} 35. Kg3 {[%clk 0:01:23]}  Ne3 {[%clk 0:00:10]} 36. Rxf7+ {[%clk 0:01:22]}  Kh6 {[%clk 0:00:10]} 37. Rf6 {[%clk 0:01:14]}  Nf1+ {[%clk 0:00:08]} 38. Kf4 {[%clk 0:01:12]}  Ra8 {[%clk 0:00:03]} 39. Bxg6 {[%clk 0:01:09]}  Kg7 {[%clk 0:00:03]} 40. Rxd6 {[%clk 0:01:09]}  Rf8+ {[%clk 0:00:00]} 41. Bf5 {[%clk 0:01:10]} 1-0


[Site "https://www.chess.com"]

[Event "Titled Tuesday Blitz May 30 Early 2023"]
[White "Zaitsev, Alexander"]
[Black "Blackwhite017"]
[WhiteFideId "4164490"]
[WhiteElo "2373"]
[BlackElo "2107"]
[Result "1-0"]
[Round "04"]
[TimeControl "180+2"]
[Date "2023.05.30"]
[WhiteClock "0:00:47"]
[BlackClock "0:00:31"]

1. e4 {[%clk 0:03:00]}  c5 {[%clk 0:02:58]} 2. Nf3 {[%clk 0:03:00]}  d6 {[%clk 0:02:58]} 3. d4 {[%clk 0:03:01]}  cxd4 {[%clk 0:02:59]} 4. Qxd4 {[%clk 0:03:01]}  Nc6 {[%clk 0:02:59]} 5. Bb5 {[%clk 0:03:01]}  Bd7 {[%clk 0:03:00]} 6. Bxc6 {[%clk 0:03:01]}  Bxc6 {[%clk 0:03:01]} 7. Nc3 {[%clk 0:03:02]}  Nf6 {[%clk 0:03:01]} 8. Bg5 {[%clk 0:03:01]}  h6 {[%clk 0:02:54]} 9. Bxf6 {[%clk 0:03:00]}  gxf6 {[%clk 0:02:55]} 10. Nd5 {[%clk 0:02:51]}  Bg7 {[%clk 0:02:25]} 11. O-O {[%clk 0:02:28]}  e6 {[%clk 0:01:48]} 12. Nc3 {[%clk 0:02:20]}  Qc7 {[%clk 0:01:40]} 13. Rad1 {[%clk 0:02:17]}  Ke7 {[%clk 0:01:39]} 14. Rd2 {[%clk 0:02:06]}  Rhg8 {[%clk 0:01:35]} 15. Qe3 {[%clk 0:01:51]}  b6 {[%clk 0:01:32]} 16. Rfd1 {[%clk 0:01:50]}  Rad8 {[%clk 0:01:29]} 17. Nd5+ {[%clk 0:01:45]}  Bxd5 {[%clk 0:01:21]} 18. exd5 {[%clk 0:01:46]}  f5 {[%clk 0:01:06]} 19. dxe6 {[%clk 0:01:40]}  fxe6 {[%clk 0:01:06]} 20. Nd4 {[%clk 0:01:14]}  Bxd4 {[%clk 0:00:59]} 21. Rxd4 {[%clk 0:01:07]}  e5 {[%clk 0:00:45]} 22. Qxh6 {[%clk 0:00:49]}  exd4 {[%clk 0:00:31]} 23. Qh7+ {[%clk 0:00:47]} 1-0


[Site "https://www.chess.com"]

[Event "Titled Tuesday Blitz May 30 Early 2023"]
[White "Sprenar, Petr"]
[Black "Joubert, Dantelle"]
[WhiteFideId "397164"]
[BlackFideId "14310813"]
[WhiteElo "2182"]
[BlackElo "1507"]
[Result "1-0"]
[Round "04"]
[TimeControl "180+2"]
[Date "2023.05.30"]
[WhiteClock "0:01:08"]
[BlackClock "0:00:36"]

1. d4 {[%clk 0:03:00]}  d5 {[%clk 0:02:59]} 2. c4 {[%clk 0:02:57]}  c6 {[%clk 0:02:58]} 3. cxd5 {[%clk 0:02:56]}  cxd5 {[%clk 0:02:56]} 4. Bf4 {[%clk 0:02:57]}  Nc6 {[%clk 0:02:48]} 5. Nc3 {[%clk 0:02:56]}  Nf6 {[%clk 0:02:45]} 6. e3 {[%clk 0:02:56]}  a6 {[%clk 0:02:45]} 7. Be2 {[%clk 0:02:44]}  e6 {[%clk 0:02:35]} 8. Rc1 {[%clk 0:02:43]}  Bd6 {[%clk 0:02:33]} 9. Bxd6 {[%clk 0:02:44]}  Qxd6 {[%clk 0:02:34]} 10. f4 {[%clk 0:02:45]}  O-O {[%clk 0:02:31]} 11. Nf3 {[%clk 0:02:45]}  Ne4 {[%clk 0:02:30]} 12. Nxe4 {[%clk 0:02:40]}  dxe4 {[%clk 0:02:30]} 13. Ne5 {[%clk 0:02:41]}  Nxe5 {[%clk 0:02:11]} 14. fxe5 {[%clk 0:02:29]}  Qb4+ {[%clk 0:02:10]} 15. Qd2 {[%clk 0:02:30]}  Qxd2+ {[%clk 0:02:07]} 16. Kxd2 {[%clk 0:02:31]}  f6 {[%clk 0:02:05]} 17. exf6 {[%clk 0:02:30]}  gxf6 {[%clk 0:02:03]} 18. Rc7 {[%clk 0:02:27]}  Rf7 {[%clk 0:02:02]} 19. Rhc1 {[%clk 0:02:27]}  Rxc7 {[%clk 0:01:36]} 20. Rxc7 {[%clk 0:02:26]}  f5 {[%clk 0:01:28]} 21. g4 {[%clk 0:02:23]}  b5 {[%clk 0:01:25]} 22. g5 {[%clk 0:02:15]}  Rb8 {[%clk 0:01:17]} 23. h4 {[%clk 0:02:12]}  Bb7 {[%clk 0:01:16]} 24. h5 {[%clk 0:02:09]}  Bd5 {[%clk 0:01:14]} 25. b3 {[%clk 0:02:06]}  a5 {[%clk 0:01:12]} 26. Kc3 {[%clk 0:01:23]}  a4 {[%clk 0:01:07]} 27. Kb4 {[%clk 0:01:23]}  axb3 {[%clk 0:01:03]} 28. axb3 {[%clk 0:01:24]}  Ra8 {[%clk 0:01:02]} 29. Bxb5 {[%clk 0:01:21]}  Ra2 {[%clk 0:01:02]} 30. Rc8+ {[%clk 0:01:16]}  Kg7 {[%clk 0:00:59]} 31. h6+ {[%clk 0:01:08]}  Kg6 {[%clk 0:00:58]} 32. Rg8+ {[%clk 0:01:08]}  Kh5 {[%clk 0:00:57]} 33. Be8+ {[%clk 0:01:08]}  Kh4 {[%clk 0:00:56]} 34. g6 {[%clk 0:01:08]}  hxg6 {[%clk 0:00:36]} 35. h7 {[%clk 0:01:08]} 1-0


[Site "https://www.chess.com"]

[Event "Titled Tuesday Blitz May 30 Early 2023"]
[White "Makhmudov, Shukhrat"]
[Black "Schnaider, Ilan"]
[WhiteFideId "14200775"]
[BlackFideId "169013"]
[WhiteElo "2135"]
[BlackElo "2224"]
[Result "0-1"]
[Round "04"]
[TimeControl "180+2"]
[Date "2023.05.30"]
[WhiteClock "0:00:30"]
[BlackClock "0:00:06"]

1. e4 {[%clk 0:03:00]}  c5 {[%clk 0:02:59]} 2. Nf3 {[%clk 0:03:01]}  d6 {[%clk 0:02:59]} 3. d4 {[%clk 0:03:02]}  cxd4 {[%clk 0:03:00]} 4. Nxd4 {[%clk 0:03:02]}  Nf6 {[%clk 0:03:00]} 5. Nc3 {[%clk 0:03:03]}  a6 {[%clk 0:02:59]} 6. h3 {[%clk 0:03:03]}  e5 {[%clk 0:02:56]} 7. Nf3 {[%clk 0:03:03]}  h5 {[%clk 0:02:50]} 8. Bg5 {[%clk 0:03:02]}  Be6 {[%clk 0:02:46]} 9. Nd5 {[%clk 0:02:55]}  Bxd5 {[%clk 0:02:36]} 10. exd5 {[%clk 0:02:48]}  Nbd7 {[%clk 0:02:31]} 11. c3 {[%clk 0:02:47]}  Be7 {[%clk 0:02:24]} 12. Bd3 {[%clk 0:02:45]}  Nxd5 {[%clk 0:02:09]} 13. Bxe7 {[%clk 0:02:44]}  Nxe7 {[%clk 0:02:05]} 14. O-O {[%clk 0:02:38]}  Qc7 {[%clk 0:01:55]} 15. Ng5 {[%clk 0:02:33]}  d5 {[%clk 0:01:37]} 16. Be2 {[%clk 0:02:12]}  Nf6 {[%clk 0:01:33]} 17. Qc2 {[%clk 0:02:02]}  g6 {[%clk 0:01:19]} 18. Rfe1 {[%clk 0:01:59]}  O-O {[%clk 0:01:14]} 19. Rad1 {[%clk 0:01:54]}  Rad8 {[%clk 0:01:06]} 20. Bd3 {[%clk 0:01:45]}  e4 {[%clk 0:00:57]} 21. Bf1 {[%clk 0:01:45]}  Kg7 {[%clk 0:00:40]} 22. g3 {[%clk 0:01:40]}  Nf5 {[%clk 0:00:35]} 23. Bg2 {[%clk 0:01:34]}  e3 {[%clk 0:00:32]} 24. f4 {[%clk 0:01:22]}  Nxg3 {[%clk 0:00:28]} 25. f5 {[%clk 0:01:07]}  Nxf5 {[%clk 0:00:23]} 26. Nf3 {[%clk 0:01:00]}  Rfe8 {[%clk 0:00:21]} 27. Re2 {[%clk 0:00:53]}  Ng3 {[%clk 0:00:18]} 28. Ree1 {[%clk 0:00:52]}  Qf4 {[%clk 0:00:16]} 29. Rd4 {[%clk 0:00:51]}  Nfe4 {[%clk 0:00:16]} 30. c4 {[%clk 0:00:46]}  dxc4 {[%clk 0:00:14]} 31. Qxc4 {[%clk 0:00:46]}  Rxd4 {[%clk 0:00:14]} 32. Qxd4+ {[%clk 0:00:46]}  Qf6 {[%clk 0:00:10]} 33. Qxe3 {[%clk 0:00:44]}  Qxb2 {[%clk 0:00:09]} 34. Nd4 {[%clk 0:00:42]}  h4 {[%clk 0:00:06]} 35. Bxe4 {[%clk 0:00:42]}  Rxe4 {[%clk 0:00:06]} 36. Qf2 {[%clk 0:00:41]}  Rxe1+ {[%clk 0:00:05]} 37. Qxe1 {[%clk 0:00:37]}  Qxd4+ {[%clk 0:00:06]} 38. Kh2 {[%clk 0:00:37]}  Qb2+ {[%clk 0:00:05]} 39. Kg1 {[%clk 0:00:37]}  Qb6+ {[%clk 0:00:05]} 40. Kg2 {[%clk 0:00:37]}  Qc6+ {[%clk 0:00:04]} 41. Kh2 {[%clk 0:00:34]}  Qh1+ {[%clk 0:00:02]} 42. Qxh1 {[%clk 0:00:33]}  Nxh1 {[%clk 0:00:03]} 43. Kxh1 {[%clk 0:00:34]}  f5 {[%clk 0:00:04]} 44. Kg2 {[%clk 0:00:35]}  Kf6 {[%clk 0:00:05]} 45. Kf3 {[%clk 0:00:36]}  g5 {[%clk 0:00:06]} 46. Ke3 {[%clk 0:00:36]}  Ke5 {[%clk 0:00:07]} 47. a3 {[%clk 0:00:36]}  a5 {[%clk 0:00:06]} 48. a4 {[%clk 0:00:36]}  g4 {[%clk 0:00:07]} 49. Kf2 {[%clk 0:00:33]}  gxh3 {[%clk 0:00:06]} 50. Kg1 {[%clk 0:00:33]}  f4 {[%clk 0:00:07]} 51. Kh2 {[%clk 0:00:30]}  Kd5 {[%clk 0:00:06]} 0-1


[Site "https://www.chess.com"]